fUST/lending_fUST_20250729
["ID","MTS","AMOUNT","RATE_DAILY","PERIOD"]
[375789471,1753747844389,-216.06083566,0.00020472,2]
[375789473,1753747844399,-1000.0,0.00020521,2]
[375789475,1753747844408,-1000.0,0.00020521,2]
[375789477,1753747844417,-1000.0,0.00020521,2]
[375789479,1753747844427,-516.86457404,0.00020521,2]
[375789481,1753747844436,-263.18,0.00020537,3]
[375789483,1753747844446,-371.71,0.00020537,3]
[375789485,1753747844455,-460.0,0.00020547,2]
[375789487,1753747844466,-460.0,0.00020547,2]
[375789489,1753747844477,-460.0,0.00020547,2]
[375789491,1753747844490,-460.0,0.00020547,2]
[375789493,1753747844499,-495.42,0.00020547,2]
[375789495,1753747844509,-495.42,0.00020547,2]
[375789497,1753747844521,-460.0,0.00020547,2]
[375789499,1753747844530,-460.0,0.00020547,2]
[375789501,1753747844539,-2992.24,0.00020547,2]
[375789503,1753747844549,-460.0,0.00020547,2]
[375789505,1753747844560,-460.0,0.00020547,2]
[375789507,1753747844571,-460.0,0.00020547,2]
[375789509,1753747844580,-582.13,0.00020547,2]
[375789511,1753747844589,-460.0,0.00020547,2]
[375789513,1753747844599,-460.0,0.00020547,2]
[375789515,1753747844609,-1408.18,0.00020547,2]
[375789517,1753747844618,-1292.36,0.00020547,2]
[375789519,1753747844628,-460.0,0.00020547,2]
[375789521,1753747844638,-460.0,0.00020547,2]
[375789523,1753747844647,-460.0,0.00020547,2]
[375789525,1753747844657,-460.0,0.00020547,2]
[375789527,1753747844666,-220.0,0.00020547,2]
[375789529,1753747844676,-963.32,0.00020547,2]
[375789531,1753747844685,-460.0,0.00020547,2]
[375789533,1753747844694,-483.87930488,0.00020547,2]
[375789535,1753747844704,-487.71,0.00020547,2]
[375789537,1753747844713,-460.0,0.00020547,2]
[375789539,1753747844723,-460.0,0.00020547,2]
[375789541,1753747844732,-460.0,0.00020547,2]
[375789543,1753747844741,-460.0,0.00020547,2]
[375789545,1753747844751,-460.0,0.00020547,2]
[375789547,1753747844760,-460.0,0.00020547,2]
[375789549,1753747844770,-1161.04,0.00020547,2]
[375789551,1753747844779,-460.0,0.00020547,2]
[375789553,1753747844788,-1588.16,0.00020547,2]
[375789555,1753747844797,-460.0,0.00020547,2]
[375789557,1753747844807,-460.0,0.00020547,2]
[375789559,1753747844816,-460.0,0.00020547,2]
[375789561,1753747844825,-545.4,0.00020547,2]
[375789563,1753747844834,-460.0,0.00020547,2]
[375789565,1753747844844,-460.0,0.00020547,2]
[375789567,1753747844853,-460.0,0.00020547,2]
[375789569,1753747844863,-460.0,0.00020547,2]
[375789570,1753747844872,-3267.79,0.00020547,2]
[375789573,1753747844881,-460.0,0.00020547,2]
[375789574,1753747844891,-3131.63,0.00020547,2]
[375789576,1753747844900,-460.0,0.00020547,2]
[375789578,1753747844909,-460.0,0.00020547,2]
[375789580,1753747844918,-460.0,0.00020547,2]
[375789582,1753747844927,-1618.75,0.00020547,2]
[375789584,1753747844938,-460.0,0.00020547,2]
[375789586,1753747844950,-460.0,0.00020547,2]
[375789588,1753747844959,-460.0,0.00020547,2]
[375789590,1753747844968,-460.0,0.00020547,2]
[375789592,1753747844978,-460.0,0.00020547,2]
[375789594,1753747844987,-460.0,0.00020547,2]
[375789597,1753747844996,-192.31603521,0.00020547,2]
[375789599,1753747845005,-460.0,0.00020547,2]
[375789601,1753747845015,-460.0,0.00020547,2]
[375789603,1753747845026,-460.0,0.00020547,2]
[375789604,1753747845035,-460.0,0.00020547,2]
[375789606,1753747845045,-460.0,0.00020547,2]
[375789608,1753747845055,-859.79,0.00020547,2]
[375789610,1753747845064,-460.0,0.00020547,2]
[375789612,1753747845073,-1195.35,0.00020547,2]
[375789614,1753747845083,-460.0,0.00020547,2]
[375789616,1753747845092,-460.0,0.00020547,2]
[375789618,1753747845101,-460.0,0.00020547,2]
[375789620,1753747845111,-460.0,0.00020547,2]
[375789622,1753747845120,-555.83,0.00020547,2]
[375789624,1753747845130,-1351.63,0.00020547,2]
[375789626,1753747845139,-717.11,0.00020547,2]
[375789628,1753747845149,-460.0,0.00020547,2]
[375789630,1753747845158,-396.32042496,0.00020547,2]
[375789632,1753747845168,-500.0,0.00020548,2]
[375789634,1753747845177,-1500.0,0.00020568,2]
[375789636,1753747845187,-500.0,0.00020568,2]
[375789638,1753747845196,-1500.0,0.00020568,2]
[375789640,1753747845206,-1500.0,0.00020568,2]
[375789642,1753747845215,-1500.0,0.00020568,2]
[375789644,1753747845225,-500.0,0.00020573,2]
[375789646,1753747845235,-500.0,0.00020573,2]
[375789648,1753747845244,-500.0,0.00020573,2]
[375789650,1753747845253,-173.72,0.00020623,2]
[375789652,1753747845263,-460.0,0.00020821,2]
[375789654,1753747845273,-460.0,0.00020821,2]
[375789656,1753747845282,-460.0,0.00020821,2]
[375789658,1753747845292,-460.0,0.00020821,2]
[375789660,1753747845302,-495.42,0.00020821,2]
[375789662,1753747845311,-495.42,0.00020821,2]
[375789664,1753747845321,-460.0,0.00020821,2]
[375789666,1753747845331,-460.0,0.00020821,2]
[375789668,1753747845340,-2992.24,0.00020821,2]
[375789670,1753747845350,-460.0,0.00020821,2]
[375789672,1753747845360,-460.0,0.00020821,2]
[375789674,1753747845370,-460.0,0.00020821,2]
[375789676,1753747845380,-460.0,0.00020821,2]
[375789677,1753747845391,-245.16,0.00020821,2]
[375789679,1753747845401,-1408.18,0.00020821,2]
[375789681,1753747845410,-1292.36,0.00020821,2]
[375789683,1753747845420,-460.0,0.00020821,2]
[375789685,1753747845430,-460.0,0.00020821,2]
[375789687,1753747845439,-460.0,0.00020821,2]
[375789690,1753747845449,-460.0,0.00020821,2]
[375789691,1753747845459,-963.32,0.00020821,2]
[375789694,1753747845468,-460.0,0.00020821,2]
[375789695,1753747845479,-487.71,0.00020821,2]
[375789698,1753747845491,-460.0,0.00020821,2]
[375789699,1753747845501,-460.0,0.00020821,2]
[375789701,1753747845510,-460.0,0.00020821,2]
[375789704,1753747845521,-526.66642539,0.00020821,2]
[375789706,1753747845532,-460.0,0.00020821,2]
[375789707,1753747845541,-1161.04,0.00020821,2]
[375789710,1753747845551,-460.0,0.00020821,2]
[375789711,1753747845561,-1588.16,0.00020821,2]
[375789713,1753747845571,-460.0,0.00020821,2]
[375789716,1753747845583,-460.0,0.00020821,2]
[375789718,1753747845592,-460.0,0.00020821,2]
[375789720,1753747845602,-545.4,0.00020821,2]
[375789721,1753747845612,-460.0,0.00020821,2]
[375789723,1753747845621,-460.0,0.00020821,2]
[375789725,1753747845630,-500.07,0.00020821,2]
[375789727,1753747845640,-3267.79,0.00020821,2]
[375789729,1753747845649,-460.0,0.00020821,2]
[375789731,1753747845659,-3131.63,0.00020821,2]
[375789733,1753747845669,-460.0,0.00020821,2]
[375789735,1753747845678,-460.0,0.00020821,2]
[375789737,1753747845689,-460.0,0.00020821,2]
[375789739,1753747845699,-1618.75,0.00020821,2]
[375789742,1753747845711,-460.0,0.00020821,2]
[375789744,1753747845720,-460.0,0.00020821,2]
[375789746,1753747845729,-460.0,0.00020821,2]
[375789748,1753747845739,-460.0,0.00020821,2]
[375789750,1753747845748,-460.0,0.00020821,2]
[375789751,1753747845757,-460.0,0.00020821,2]
[375789753,1753747845767,-460.0,0.00020821,2]
[375789756,1753747845778,-388.99381343,0.00020821,2]
[375789757,1753747845787,-460.0,0.00020821,2]
[375789759,1753747845797,-460.0,0.00020821,2]
[375789761,1753747845806,-460.0,0.00020821,2]
[375789763,1753747845816,-859.79,0.00020821,2]
[375789765,1753747845825,-1195.35,0.00020821,2]
[375789767,1753747845834,-460.0,0.00020821,2]
[375789769,1753747845843,-460.0,0.00020821,2]
[375789771,1753747845853,-460.0,0.00020821,2]
[375789774,1753747845862,-460.0,0.00020821,2]
[375789775,1753747845872,-555.83,0.00020821,2]
[375789777,1753747845881,-1351.63,0.00020821,2]
[375789779,1753747845892,-717.11,0.00020821,2]
[375789781,1753747845901,-460.0,0.00020821,2]
[375789783,1753747845911,-500.0,0.00020822,2]
[375789785,1753747845920,-500.0,0.00020882,2]
[375789787,1753747845929,-2274.29315631,0.00020896,2]
[375789789,1753747845939,-2274.29315631,0.00020896,2]
[375789791,1753747845948,-484.67243975,0.00020896,2]
[375789793,1753747845957,-2274.29315631,0.00020896,2]
[375789795,1753747845966,-2274.29315631,0.00020896,2]
[375789797,1753747845975,-2274.29315631,0.00020896,2]
[375789799,1753747845985,-2274.29315631,0.00020896,2]
[375789801,1753747845994,-2274.29315631,0.00020896,2]
[375789803,1753747846003,-2274.29315631,0.00020896,2]
[375789805,1753747846012,-2274.29315631,0.00020896,2]
[375789807,1753747846024,-2274.29315631,0.00020896,2]
[375789809,1753747846033,-2274.29315631,0.00020896,2]
[375789811,1753747846042,-2274.29315631,0.00020896,2]
[375789813,1753747846052,-2274.29315631,0.00020896,2]
[375789815,1753747846062,-200.0,0.00020897,15]
[375789817,1753747846071,-200.0,0.00020897,15]
[375789819,1753747846081,-200.0,0.00020897,15]
[375789821,1753747846090,-200.0,0.00020897,15]
[375789823,1753747846100,-320.0,0.00020897,15]
[375789825,1753747846109,-23663.63177816,0.00020998,2]
[375789827,1753747846119,-151.0,0.00020998,2]
[375789829,1753747846129,-3219.03643899,0.00020998,2]
[375789831,1753747846138,-162.0,0.00021,4]
[375789833,1753747846147,-420.0,0.00021003,2]
[375789835,1753747846157,-1010.63255838,0.00021068,2]
[375789837,1753747846166,-503.59439869,0.00021068,2]
[375789839,1753747846175,-1000.0,0.00021068,2]
[375789841,1753747846185,-709.0,0.00021086,3]
[375789843,1753747846194,-354.5,0.00021086,3]
[375789845,1753747846204,-460.0,0.00021095,2]
[375789847,1753747846214,-460.0,0.00021095,2]
[375789849,1753747846224,-467.26,0.00021095,2]
[375789851,1753747846233,-460.0,0.00021095,2]
[375789853,1753747846243,-495.42,0.00021095,2]
[375789855,1753747846253,-495.42,0.00021095,2]
[375789857,1753747846263,-460.0,0.00021095,2]
[375789859,1753747846272,-460.0,0.00021095,2]
[375789860,1753747846281,-2992.24,0.00021095,2]
[375789862,1753747846291,-460.0,0.00021095,2]
[375789864,1753747846300,-460.0,0.00021095,2]
[375789866,1753747846310,-460.0,0.00021095,2]
[375789868,1753747846319,-460.0,0.00021095,2]
[375789870,1753747846329,-1408.18,0.00021095,2]
[375789872,1753747846338,-1292.36,0.00021095,2]
[375789875,1753747846349,-460.0,0.00021095,2]
[375789877,1753747846359,-460.0,0.00021095,2]
[375789879,1753747846368,-460.0,0.00021095,2]
[375789881,1753747846378,-460.0,0.00021095,2]
[375789882,1753747846388,-963.32,0.00021095,2]
[375789884,1753747846397,-460.0,0.00021095,2]
[375789886,1753747846407,-487.71,0.00021095,2]
[375789888,1753747846416,-460.0,0.00021095,2]
[375789890,1753747846426,-460.0,0.00021095,2]
[375789892,1753747846435,-460.0,0.00021095,2]
[375789894,1753747846444,-460.0,0.00021095,2]
[375789896,1753747846453,-1161.04,0.00021095,2]
[375789898,1753747846462,-460.0,0.00021095,2]
[375789900,1753747846472,-1588.16,0.00021095,2]
[375789903,1753747846485,-460.0,0.00021095,2]
[375789904,1753747846494,-460.0,0.00021095,2]
[375789906,1753747846504,-460.0,0.00021095,2]
[375789908,1753747846514,-545.4,0.00021095,2]
[375789910,1753747846524,-460.0,0.00021095,2]
[375789912,1753747846534,-460.0,0.00021095,2]
[375789914,1753747846544,-460.0,0.00021095,2]
[375789916,1753747846553,-3267.79,0.00021095,2]
[375789918,1753747846564,-3131.63,0.00021095,2]
[375789920,1753747846574,-460.0,0.00021095,2]
[375789923,1753747846584,-464.2,0.00021095,2]
[375789924,1753747846595,-460.0,0.00021095,2]
[375789926,1753747846604,-1618.75,0.00021095,2]
[375789928,1753747846613,-460.0,0.00021095,2]
[375789930,1753747846622,-460.0,0.00021095,2]
[375789932,1753747846632,-460.0,0.00021095,2]
[375789934,1753747846641,-460.0,0.00021095,2]
[375789936,1753747846651,-460.0,0.00021095,2]
[375789938,1753747846660,-460.0,0.00021095,2]
[375789940,1753747846669,-460.0,0.00021095,2]
[375789942,1753747846679,-460.0,0.00021095,2]
[375789944,1753747846689,-460.0,0.00021095,2]
[375789946,1753747846698,-460.0,0.00021095,2]
[375789948,1753747846708,-859.79,0.00021095,2]
[375789950,1753747846717,-1195.35,0.00021095,2]
[375789952,1753747846726,-460.0,0.00021095,2]
[375789954,1753747846736,-460.0,0.00021095,2]
[375789956,1753747846745,-460.0,0.00021095,2]
[375789958,1753747846754,-460.0,0.00021095,2]
[375789960,1753747846764,-555.83,0.00021095,2]
[375789962,1753747846774,-1351.63,0.00021095,2]
[375789964,1753747846786,-717.11,0.00021095,2]
[375789966,1753747846795,-460.0,0.00021095,2]
[375789968,1753747846804,-500.0,0.00021096,2]
[375789970,1753747846814,-2000.0,0.00021116,2]
[375789972,1753747846823,-500.0,0.00021116,2]
[375789974,1753747846833,-1500.0,0.00021116,2]
[375789976,1753747846842,-1404.74566212,0.00021116,2]
[375789978,1753747846851,-1155.04694945,0.0002133,2]
[375789980,1753747846860,-465.9,0.00021343,4]
[375789982,1753747846870,-460.0,0.00021369,2]
[375789984,1753747846879,-460.0,0.00021369,2]
[375789986,1753747846888,-460.0,0.00021369,2]
[375789988,1753747846897,-495.42,0.00021369,2]
[375789990,1753747846906,-495.42,0.00021369,2]
[375789992,1753747846916,-460.0,0.00021369,2]
[375789994,1753747846925,-460.0,0.00021369,2]
[375789996,1753747846934,-2992.24,0.00021369,2]
[375789998,1753747846944,-460.0,0.00021369,2]
[375790000,1753747846956,-460.0,0.00021369,2]
[375790002,1753747846966,-460.0,0.00021369,2]
[375790004,1753747846975,-373.48192095,0.00021369,2]
[375790005,1753747846984,-1408.18,0.00021369,2]
[375790007,1753747846993,-1292.36,0.00021369,2]
[375790009,1753747847004,-460.0,0.00021369,2]
[375790011,1753747847014,-460.0,0.00021369,2]
[375790013,1753747847024,-460.0,0.00021369,2]
[375790021,1753747847173,-460.0,0.00021369,2]
[375790022,1753747847184,-963.32,0.00021369,2]
[375790023,1753747847193,-460.0,0.00021369,2]
[375790024,1753747847203,-487.71,0.00021369,2]
[375790025,1753747847213,-460.0,0.00021369,2]
[375790026,1753747847224,-460.0,0.00021369,2]
[375790027,1753747847235,-460.0,0.00021369,2]
[375790028,1753747847245,-460.0,0.00021369,2]
[375790029,1753747847255,-1161.04,0.00021369,2]
[375790030,1753747847265,-460.0,0.00021369,2]
[375790031,1753747847275,-1588.16,0.00021369,2]
[375790032,1753747847284,-460.0,0.00021369,2]
[375790033,1753747847293,-460.0,0.00021369,2]
[375790034,1753747847302,-460.0,0.00021369,2]
[375790035,1753747847312,-545.4,0.00021369,2]
[375790037,1753747847322,-460.0,0.00021369,2]
[375790038,1753747847331,-460.0,0.00021369,2]
[375790040,1753747847341,-460.0,0.00021369,2]
[375790042,1753747847351,-3267.79,0.00021369,2]
[375790044,1753747847360,-3131.63,0.00021369,2]
[375790046,1753747847370,-460.0,0.00021369,2]
[375790048,1753747847379,-460.0,0.00021369,2]
[375790050,1753747847389,-1618.75,0.00021369,2]
[375790052,1753747847398,-460.0,0.00021369,2]
[375790054,1753747847408,-460.0,0.00021369,2]
[375790056,1753747847417,-460.0,0.00021369,2]
[375790058,1753747847427,-460.0,0.00021369,2]
[375790060,1753747847436,-460.0,0.00021369,2]
[375790062,1753747847446,-460.0,0.00021369,2]
[375790064,1753747847455,-460.0,0.00021369,2]
[375790066,1753747847465,-460.0,0.00021369,2]
[375790068,1753747847475,-460.0,0.00021369,2]
[375790070,1753747847488,-460.0,0.00021369,2]
[375790072,1753747847498,-859.79,0.00021369,2]
[375790074,1753747847507,-1195.35,0.00021369,2]
[375790076,1753747847518,-460.0,0.00021369,2]
[375790078,1753747847530,-460.0,0.00021369,2]
[375790080,1753747847540,-460.0,0.00021369,2]
[375790082,1753747847550,-555.83,0.00021369,2]
[375790084,1753747847561,-1351.63,0.00021369,2]
[375790086,1753747847571,-717.11,0.00021369,2]
[375790088,1753747847580,-460.0,0.00021369,2]
[375790090,1753747847590,-500.0,0.0002137,2]
[375790092,1753747847600,-430.064903,0.00021589,2]
[375790094,1753747847610,-430.064903,0.00021589,2]
[375790096,1753747847619,-429.7456075,0.00021589,2]
[375790098,1753747847629,-430.064903,0.00021589,2]
[375790100,1753747847638,-430.064903,0.00021589,2]
[375790102,1753747847648,-873.051,0.00021613,2]
[375790104,1753747847658,-535.7,0.00021633,3]
[375790106,1753747847668,-1071.42,0.00021634,3]
[375790108,1753747847677,-460.0,0.00021643,2]
[375790110,1753747847686,-460.0,0.00021643,2]
[375790112,1753747847696,-460.0,0.00021643,2]
[375790114,1753747847706,-495.42,0.00021643,2]
[375790116,1753747847716,-495.42,0.00021643,2]
[375790117,1753747847725,-460.0,0.00021643,2]
[375790119,1753747847735,-460.0,0.00021643,2]
[375790121,1753747847744,-2992.24,0.00021643,2]
[375790123,1753747847754,-460.0,0.00021643,2]
[375790125,1753747847763,-460.0,0.00021643,2]
[375790127,1753747847777,-460.0,0.00021643,2]
[375790129,1753747847786,-1408.18,0.00021643,2]
[375790131,1753747847796,-1292.36,0.00021643,2]
[375790133,1753747847807,-460.0,0.00021643,2]
[375790135,1753747847817,-460.0,0.00021643,2]
[375790137,1753747847826,-460.72,0.00021643,2]
[375790139,1753747847836,-460.0,0.00021643,2]
[375790141,1753747847845,-963.32,0.00021643,2]
[375790143,1753747847855,-460.0,0.00021643,2]
[375790145,1753747847864,-487.71,0.00021643,2]
[375790147,1753747847874,-460.0,0.00021643,2]
[375790149,1753747847885,-460.0,0.00021643,2]
[375790151,1753747847895,-460.0,0.00021643,2]
[375790153,1753747847905,-1161.04,0.00021643,2]
[375790155,1753747847914,-460.0,0.00021643,2]
[375790157,1753747847924,-1588.16,0.00021643,2]
[375790159,1753747847934,-460.0,0.00021643,2]
[375790161,1753747847943,-460.0,0.00021643,2]
[375790163,1753747847953,-460.0,0.00021643,2]
[375790165,1753747847962,-545.4,0.00021643,2]
[375790167,1753747847972,-460.0,0.00021643,2]
[375790169,1753747847981,-460.0,0.00021643,2]
[375790171,1753747847990,-460.0,0.00021643,2]
[375790173,1753747848000,-3267.79,0.00021643,2]
[375790175,1753747848011,-3131.63,0.00021643,2]
[375790177,1753747848020,-460.0,0.00021643,2]
[375790179,1753747848034,-460.0,0.00021643,2]
[375790181,1753747848043,-1618.75,0.00021643,2]
[375790183,1753747848054,-460.0,0.00021643,2]
[375790185,1753747848063,-460.0,0.00021643,2]
[375790187,1753747848076,-460.0,0.00021643,2]
[375790189,1753747848085,-460.0,0.00021643,2]
[375790191,1753747848094,-174.77639474,0.00021643,2]
[375790193,1753747848104,-460.0,0.00021643,2]
[375790195,1753747848114,-460.0,0.00021643,2]
[375790197,1753747848123,-460.0,0.00021643,2]
[375790199,1753747848133,-460.0,0.00021643,2]
[375790201,1753747848142,-460.0,0.00021643,2]
[375790203,1753747848151,-859.79,0.00021643,2]
[375790205,1753747848161,-1195.35,0.00021643,2]
[375790207,1753747848170,-460.0,0.00021643,2]
[375790208,1753747848180,-460.0,0.00021643,2]
[375790210,1753747848189,-460.0,0.00021643,2]
[375790212,1753747848198,-555.83,0.00021643,2]
[375790214,1753747848207,-1351.63,0.00021643,2]
[375790216,1753747848217,-717.11,0.00021643,2]
[375790218,1753747848226,-460.0,0.00021643,2]
[375790220,1753747848235,-500.0,0.00021644,2]
[375790222,1753747848245,-278.98972925,0.00021664,2]
[375790224,1753747848254,-500.0,0.00021668,2]
[375790226,1753747848263,-465.9,0.00021795,4]
[375790228,1753747848275,-526.36,0.00021907,3]
[375790230,1753747848284,-743.42,0.00021907,3]
[375790232,1753747848293,-460.0,0.00021917,2]
[375790234,1753747848303,-460.0,0.00021917,2]
[375790236,1753747848312,-460.0,0.00021917,2]
[375790238,1753747848322,-495.42,0.00021917,2]
[375790240,1753747848332,-495.42,0.00021917,2]
[375790241,1753747848341,-460.0,0.00021917,2]
[375790243,1753747848351,-460.0,0.00021917,2]
[375790245,1753747848360,-2992.24,0.00021917,2]
[375790247,1753747848370,-598.63,0.00021917,2]
[375790249,1753747848380,-460.0,0.00021917,2]
[375790251,1753747848389,-1408.18,0.00021917,2]
[375790253,1753747848399,-1292.36,0.00021917,2]
[375790255,1753747848409,-460.0,0.00021917,2]
[375790257,1753747848419,-963.32,0.00021917,2]
[375790259,1753747848429,-460.0,0.00021917,2]
[375790261,1753747848439,-460.0,0.00021917,2]
[375790263,1753747848448,-487.71,0.00021917,2]
[375790265,1753747848458,-460.0,0.00021917,2]
[375790268,1753747848468,-460.0,0.00021917,2]
[375790269,1753747848481,-460.0,0.00021917,2]
[375790272,1753747848492,-1161.04,0.00021917,2]
[375790273,1753747848502,-460.0,0.00021917,2]
[375790275,1753747848513,-1588.16,0.00021917,2]
[375790277,1753747848526,-460.0,0.00021917,2]
[375790280,1753747848536,-460.0,0.00021917,2]
[375790281,1753747848547,-460.0,0.00021917,2]
[375790283,1753747848557,-545.4,0.00021917,2]
[375790285,1753747848568,-460.0,0.00021917,2]
[375790287,1753747848578,-151.0,0.00021917,2]
[375790289,1753747848588,-460.0,0.00021917,2]
[375790291,1753747848598,-460.0,0.00021917,2]
[375790293,1753747848608,-3267.79,0.00021917,2]
[375790295,1753747848619,-3131.63,0.00021917,2]
[375790297,1753747848630,-460.0,0.00021917,2]
[375790299,1753747848641,-1618.75,0.00021917,2]
[375790301,1753747848652,-460.0,0.00021917,2]
[375790303,1753747848663,-460.0,0.00021917,2]
[375790305,1753747848673,-460.0,0.00021917,2]
[375790307,1753747848683,-460.0,0.00021917,2]
[375790309,1753747848694,-460.0,0.00021917,2]
[375790311,1753747848703,-460.0,0.00021917,2]
[375790313,1753747848714,-460.0,0.00021917,2]
[375790315,1753747848724,-460.0,0.00021917,2]
[375790317,1753747848733,-460.0,0.00021917,2]
[375790319,1753747848743,-859.79,0.00021917,2]
[375790321,1753747848752,-1195.35,0.00021917,2]
[375790323,1753747848763,-460.0,0.00021917,2]
[375790325,1753747848777,-460.0,0.00021917,2]
[375790327,1753747848787,-518.79,0.00021917,2]
[375790329,1753747848797,-555.83,0.00021917,2]
[375790331,1753747848806,-1351.63,0.00021917,2]
[375790333,1753747848815,-717.11,0.00021917,2]
[375790334,1753747848824,-460.0,0.00021917,2]
[375790336,1753747848834,-500.0,0.00021918,2]
[375790338,1753747848843,-500.0,0.00021978,2]
[375790340,1753747848854,-660.9,0.00022,7]
[375790342,1753747848864,-460.0,0.00022191,2]
[375790344,1753747848874,-460.0,0.00022191,2]
[375790346,1753747848884,-460.0,0.00022191,2]
[375790348,1753747848894,-495.42,0.00022191,2]
[375790350,1753747848905,-495.42,0.00022191,2]
[375790352,1753747848914,-460.0,0.00022191,2]
[375790354,1753747848924,-460.0,0.00022191,2]
[375790356,1753747848934,-2992.24,0.00022191,2]
[375790358,1753747848944,-460.0,0.00022191,2]
[375790360,1753747848953,-1408.18,0.00022191,2]
[375790362,1753747848963,-1292.36,0.00022191,2]
[375790364,1753747848972,-460.0,0.00022191,2]
[375790366,1753747848982,-963.32,0.00022191,2]
[375790368,1753747848992,-460.0,0.00022191,2]
[375790370,1753747849001,-460.0,0.00022191,2]
[375790372,1753747849011,-487.71,0.00022191,2]
[375790373,1753747849020,-460.0,0.00022191,2]
[375790375,1753747849033,-460.0,0.00022191,2]
[375790377,1753747849046,-460.0,0.00022191,2]
[375790379,1753747849066,-1161.04,0.00022191,2]
[375790381,1753747849075,-460.0,0.00022191,2]
[375790383,1753747849085,-1588.16,0.00022191,2]
[375790385,1753747849095,-460.0,0.00022191,2]
[375790387,1753747849104,-460.0,0.00022191,2]
[375790389,1753747849114,-460.0,0.00022191,2]
[375790391,1753747849123,-545.4,0.00022191,2]
[375790393,1753747849133,-460.0,0.00022191,2]
[375790395,1753747849142,-460.0,0.00022191,2]
[375790397,1753747849152,-460.0,0.00022191,2]
[375790399,1753747849162,-3267.79,0.00022191,2]
[375790401,1753747849172,-460.0,0.00022191,2]
[375790403,1753747849181,-3131.63,0.00022191,2]
[375790405,1753747849190,-1618.75,0.00022191,2]
[375790407,1753747849200,-151.0,0.00022191,7]
[375790409,1753747849209,-460.0,0.00022191,2]
[375790411,1753747849219,-489.42,0.00022191,2]
[375790413,1753747849229,-151.0,0.00022191,7]
[375790415,1753747849238,-460.0,0.00022191,2]
[375790417,1753747849248,-460.0,0.00022191,2]
[375790419,1753747849264,-460.0,0.00022191,2]
[375790421,1753747849281,-460.0,0.00022191,2]
[375790423,1753747849294,-460.0,0.00022191,2]
[375790425,1753747849305,-460.0,0.00022191,2]
[375790427,1753747849315,-460.0,0.00022191,2]
[375790429,1753747849325,-859.79,0.00022191,2]
[375790431,1753747849335,-1195.35,0.00022191,2]
[375790433,1753747849344,-460.0,0.00022191,2]
[375790434,1753747849354,-460.0,0.00022191,2]
[375790436,1753747849363,-555.83,0.00022191,2]
[375790438,1753747849374,-1351.63,0.00022191,2]
[375790440,1753747849383,-460.0,0.00022191,2]
[375790442,1753747849393,-500.0,0.00022192,2]
[375790444,1753747849403,-465.9,0.00022247,4]
[375790446,1753747849412,-1152.4754033,0.00022274,2]
[375790448,1753747849422,-160.0754546,0.00022274,2]
[375790450,1753747849433,-578.0900773,0.00022274,2]